[Event "FIDE WCCC U10 2018"]
[Site "Santiago de Compostela"]
[Date "2018.11.08"]
[Round "4"]
[White "Chandra, Anand Rishi"]
[Black "Kandil, Ahmed Abdel Khalek"]
[Result "0-1"]
[ECO "C55"]
[WhiteElo "1953"]
[BlackElo "1812"]
[Annotator "NA RC"]
[PlyCount "130"]
[EventDate "2018.11.04"]
[EventType "swiss"]
[EventCountry "ESP"]
[SourceTitle "playchess.com"]
[Source "ChessBase"]
[SourceQuality "1"]
[TimeControl "40/5400+30:1800+30"]

{[%evp 8,128,40,24,32767,32767,32767,32767,32767,32767,32767,32767,32767,32767,32767,32767,32767,32767,32767,63,68,26,48,37,75,23,118,79,96,32767,32767,32767,32767,59,32767,32767,32767,32767,184,0,32767,32767,196,244,227,27,44,40,21,54,31,27,32767,22,26,31,37,-39,3,32767,0,0,0,-152,32767,32767,-35,32767,32767,-40,32767,-53,-35,-37,-40,-75,-39,-56,-34,32767,32767,32767,0,0,0,-90,-89,-138,-138,-99,-99,-235,-159,-130,-149,-134,-145,32767,32767,-153,-100,32767,32767,32767,32767,32767,-219,-201,32767,-237,32767,32767,32767,-727,-1184,-883,-1491,-6725,-29984,-29990,-29991,-29991,-567]} 1. e4 {[%emt 0:00:00]} e5 {[%emt 0:00:00]} 2. Nf3 {[%emt 0:00:00]} Nc6 {[%emt 0:00:00]} 3. Bc4 {[%emt 0:00:00]} Nf6 {[%emt 0:00:00]} 4. d3 {[%emt 0:00:00]} Be7 {[%emt 0:00:00] LiveBook: 4312 Games} 5. c3 {[%emt 0:00:00]} O-O {[%emt 0:00:00]} 6. O-O {[%emt 0:00:01]} d6 {[%emt 0:00:00]} 7. Nbd2 {[%emt 0:00:49]} h6 {[%emt 0:00:16]} 8. Re1 {[%emt 0:00:22]} Be6 {[%emt 0:00:06] C55: Zweispringerspiel} (8... Na5 9. Bb5 a6 10. Ba4 b5 11. Bc2 c5 12. Nf1 Re8 13. Ne3 Bf8 14. h3 d5 15. exd5 Nxd5 16. Nxd5 Qxd5 17. d4 Bb7 18. Be4 Qd7 19. Bxb7 Qxb7 20. dxe5 Rad8 21. Qc2 Qd5 22. Bf4 {½-½ (56) Gochelashvili,D (2419)-Balashov,Y (2429) Sochi 2018}) 9. Bb5 {[%emt 0:00:16]} a6 {[%emt 0:00:58]} 10. Ba4 {[%emt 0:00:14]} b5 {[%emt 0:00:08]} 11. Bc2 {[%emt 0:00:05]} Nh7 {[%emt 0:00:28]} 12. d4 {[%emt 0:01:09]} Bg4 {[%emt 0:01:03]} 13. h3 {[%emt 0:05:11]} Bh5 {[%emt 0:01:22]} 14. g4 {[%emt 0:00:50]} Bg6 {[%emt 0:00:05]} 15. d5 {[%emt 0:07:22]} Nb8 {[%emt 0:03:52]} 16. Nf1 $146 {[%emt 0:00:54]} ({Vorgänger:} 16. b3 c6 17. c4 h5 18. Nh2 hxg4 19. hxg4 {½-½ (86) Nieminen,K (2220)-Salo,H (2245) Finland 1994}) 16... h5 {[%emt 0:00:49]} (16... Ng5 $11) 17. Ng3 {[%emt 0:01:38]} Nf6 {[%emt 0:01:29]} 18. g5 {[%emt 0:01:03]} Nh7 {[%emt 0:00:17]} 19. h4 {[%emt 0:00:08]} f6 {[%emt 0:00:21]} 20. Nf5 {[%emt 0:14:49]} Bxf5 {[%emt 0:06:41]} 21. exf5 {[%emt 0:01:37]} fxg5 {[%emt 0:00:27] [#]} 22. f6 $1 {[%emt 0:10:31]} gxf6 {[%emt 0:09:25]} 23. Bxh7+ $2 {[%emt 0:00:23]} ({Worse is} 23. Qd3 f5 $11) (23. hxg5 $18 fxg5 24. Bxh7+ Kxh7 {[#]} 25. Nxg5+ $1 {[%mdl 512]} Bxg5 26. Qxh5+ Kg7 27. Bxg5) 23... Kxh7 {[%emt 0:00:22]} 24. hxg5 {[%emt 0:00:11]} Rg8 $2 {[%emt 0:02:02]} (24... Qe8 $11) 25. Nh4 {[%emt 0:01:35]} Qe8 {[%emt 0:03:42]} 26. g6+ $2 {[%emt 0:00:43]} (26. Qc2+ $18 Kg7 27. g6) 26... Rxg6+ $1 {[%emt 0:00:24]} 27. Nxg6 {[%emt 0:00:03]} Qxg6+ {[%emt 0:00:11]} 28. Kh2 $1 {[%emt 0:03:07]} Nd7 {[%emt 0:03:18]} 29. Rg1 {[%emt 0:02:24]} Qf5 {[%emt 0:00:52]} 30. Qd2 {[%emt 0:02:16]} Bf8 {[%emt 0:00:34]} 31. Qe3 {[%emt 0:02:34]} Bg7 {[%emt 0:04:31]} 32. Bd2 {[%emt 0:02:02]} (32. Qg3 $14 Rg8 33. a4) 32... Nc5 {[%emt 0:02:50]} 33. Rg2 {[%emt 0:01:10]} Ne4 $1 {[%emt 0:01:02]} 34. Rag1 {[%emt 0:00:25]} Ng5 {[%emt 0:00:58]} 35. Qg3 $2 {[%emt 0:12:00]} ({White should try} 35. Rxg5 $11 fxg5 36. Rxg5) 35... Bh6 {[%emt 0:03:03]} 36. Bxg5 {[%emt 0:03:11]} Bxg5 {[%emt 0:01:26]} (36... fxg5 $17 37. Kh1 Rf8) 37. Kh1 {[%emt 0:01:24]} Rg8 {[%emt 0:03:52]} 38. Rh2 {[%emt 0:02:10]} Kh6 {[%emt 0:02:06]} 39. Qh3 {[%emt 0:00:00]} Qxh3 {[%emt 0:06:20]} 40. Rxh3 {[%emt 0:05:24]} Re8 {[%emt 0:00:00]} 41. Re1 {[%emt 0:00:23]} (41. b4 $11) 41... Rb8 {[%emt 0:01:39]} 42. b3 {[%emt 0:00:28]} Kg6 {[%emt 0:01:38]} 43. Kg2 {[%emt 0:00:35]} Rh8 {[%emt 0:02:07]} 44. c4 {[%emt 0:00:30]} f5 {[%emt 0:04:40]} 45. cxb5 {[%emt 0:01:04]} axb5 {[%emt 0:00:11]} 46. f3 {[%emt 0:00:42]} (46. a4 $11) 46... Ra8 {[%emt 0:00:52]} 47. Re2 {[%emt 0:00:10]} ({White should try} 47. Kh1 $1 $15) 47... b4 {[%emt 0:00:33]} 48. Rc2 {[%emt 0:00:14]} Ra5 {[%emt 0:01:15]} 49. Rg3 {[%emt 0:05:30]} (49. Rxc7 $17 {ist wohl besser.} Rxa2+ 50. Kf1) 49... f4 {[%emt 0:02:29]} ({Don't play} 49... Rxd5 50. Kh3) 50. Rh3 {[%emt 0:00:19]} Rxd5 {[%emt 0:00:27]} 51. Rxc7 {[%emt 0:00:06]} Rd2+ {[%emt 0:01:03]} 52. Kf1 {[%emt 0:00:16]} Rxa2 {[%emt 0:00:08]} 53. Rb7 {[%emt 0:01:48]} h4 {[%emt 0:07:41]} 54. Rxb4 {[%emt 0:00:15]} Kf5 {[%emt 0:01:36]} 55. Rb8 {[%emt 0:00:56]} d5 {[%emt 0:02:18]} 56. Rf8+ {[%emt 0:00:24]} Ke6 {[%emt 0:00:07]} 57. b4 {[%emt 0:01:08]} Rb2 {[%emt 0:00:17]} 58. Rb8 {[%emt 0:00:07]} e4 {[%emt 0:00:56]} 59. fxe4 {[%emt 0:00:21]} dxe4 {[%emt 0:00:07]} 60. Rc3 {[%emt 0:00:43]} Kf5 {[%emt 0:02:04]} 61. Rc5+ {[%emt 0:02:08]} Kg4 {[%emt 0:00:20]} 62. b5 {[%emt 0:02:11]} f3 {[%emt 0:00:41]} 63. Re8 {[%emt 0:00:46]} Rb1+ {[%emt 0:00:59]} 64. Kf2 {[%emt 0:00:05]} e3+ {[%emt 0:00:08]} 65. Rxe3 {[%emt 0:00:04]} Rb2+ {[%emt 0:00:05]} 0-1

[Event "FIDE WCCC U10 2018"]
[Site "Santiago de Compostela"]
[Date "2018.11.08"]
[Round "4"]
[White "Sosa Costa, Leonardo"]
[Black "Materia, Marco"]
[Result "1/2-1/2"]
[ECO "C55"]
[WhiteElo "1945"]
[BlackElo "2035"]
[Annotator "NA RC"]
[PlyCount "115"]
[EventDate "2018.11.04"]
[EventType "swiss"]
[EventCountry "ESP"]
[SourceTitle "playchess.com"]
[Source "ChessBase"]
[SourceQuality "1"]
[TimeControl "40/5400+30:1800+30"]

{[%evp 19,115,33,39,14,24,9,34,-33,-26,-32,32767,-27,-27,-25,0,-5,0,-22,-8,-17,-7,-33,-7,-22,25,0,0,-7,30,38,39,39,29,8,41,29,25,19,44,0,0,0,32767,0,32767,32767,0,0,32767,0,0,0,0,0,0,0,0,0,0,0,0,0,0,0,0,0,32767,0,0,0,76,71,73,72,61,71,166,108,165,166,228,169,77,94,31,89,92,0,-8,0,32767,32767,32767,32767,32767,-12850,-29980,-29983]} 1. e4 {[%emt 0:00:00]} e5 {[%emt 0:00:00]} 2. Nf3 {[%emt 0:00:00]} Nc6 {[%emt 0:00:03]} 3. Bc4 {[%emt 0:00:00]} Nf6 {[%emt 0:00:15]} 4. d3 {[%emt 0:00:07]} Be7 {[%emt 0:00:23]} 5. O-O {[%emt 0:00:45]} O-O {[%emt 0:00:15]} 6. Re1 {[%emt 0:00:28]} d6 {[%emt 0:00:18]} 7. a4 {[%emt 0:00:32]} Na5 {[%emt 0:00:22]} 8. Ba2 {[%emt 0:00:15] C55: Two Knights: 4 d3, 4 d4 exd4 5 e5 and Max Lange Attack} c5 {[%emt 0:00:45]} 9. Na3 {[%emt 0:01:28]} Nc6 {[%emt 0:01:04]} 10. c3 {[%emt 0:01:05]} h6 {[%emt 0:01:09]} (10... a6 11. Bd2 Rb8 12. Nc2 Be6 13. Bxe6 fxe6 14. b4 b5 15. Qe2 Qd7 {½-½ (54) Duda,J (2707)-Naiditsch,A (2710) Linares 2017}) 11. Nc4 {[%emt 0:03:43]} Be6 {[%emt 0:02:45] LiveBook: 30 Games} 12. Bd2 {[%emt 0:01:04]} a6 {[%emt 0:01:58]} 13. Na3 $146 {[%emt 0:15:06]} ({Predecessor:} 13. b4 $11 cxb4 14. cxb4 d5 15. Ncxe5 Nxb4 {½-½ (37) Antal,G (2546)-Schreiner,P (2472) Aschach 2016}) 13... Bxa2 {[%emt 0:05:44]} 14. Rxa2 {[%emt 0:00:06]} d5 {[%emt 0:00:52]} 15. Qb1 {[%emt 0:05:11]} Qd6 {[%emt 0:05:03]} 16. b3 {[%emt 0:08:35]} d4 {[%emt 0:02:58]} 17. Nc4 {[%emt 0:03:23]} Qe6 {[%emt 0:03:33]} 18. a5 {[%emt 0:01:51]} Rfe8 {[%emt 0:04:37]} 19. Ra4 {[%emt 0:06:01]} Nd7 {[%emt 0:04:37]} 20. Re2 {[%emt 0:06:47]} dxc3 {[%emt 0:03:42]} 21. Bxc3 {[%emt 0:00:14]} Nd4 {[%emt 0:11:01]} 22. Nxd4 {[%emt 0:00:51]} cxd4 {[%emt 0:00:20]} 23. Be1 {[%emt 0:02:05]} b5 {[%emt 0:01:03]} 24. axb6 $1 {[%emt 0:00:26]} Nxb6 {[%emt 0:00:14]} 25. Ra5 {[%emt 0:01:43]} Nd7 {[%emt 0:01:41]} 26. h3 {[%emt 0:01:37]} Reb8 {[%emt 0:02:31]} 27. b4 {[%emt 0:01:55]} f6 {[%emt 0:01:18]} 28. Rb2 {[%emt 0:01:27]} Nb6 {[%emt 0:01:47]} 29. Nxb6 {[%emt 0:00:46]} Rxb6 {[%emt 0:00:14]} ({Don't play} 29... Qxb6 30. b5 $14) 30. b5 {[%emt 0:01:47]} Rab8 {[%emt 0:00:35]} 31. Rxa6 {[%emt 0:06:26]} Rxa6 {[%emt 0:00:10]} 32. bxa6 {[%emt 0:00:03]} Rxb2 {[%emt 0:00:07]} 33. Qxb2 {[%emt 0:00:10]} Qxa6 {[%emt 0:00:04]} 34. Qb3+ {[%emt 0:01:00]} Kh7 {[%emt 0:00:30]} 35. Bd2 {[%emt 0:00:39]} Qa1+ {[%emt 0:01:02]} 36. Kh2 {[%emt 0:00:08]} Qf1 {[%emt 0:00:06]} 37. f3 {[%emt 0:03:00]} Bd8 {[%emt 0:01:30]} 38. Bb4 {[%emt 0:05:52]} Qc1 {[%emt 0:01:26]} 39. Qa3 {[%emt 0:05:35]} Qf4+ {[%emt 0:01:14]} 40. Kh1 {[%emt 0:00:00]} f5 {[%emt 0:00:00]} 41. exf5 {[%emt 0:09:10]} Qxf5 {[%emt 0:06:14]} 42. Qb3 {[%emt 0:04:40]} e4 {[%emt 0:14:06]} 43. dxe4 {[%emt 0:04:47]} Qf4 {[%emt 0:02:18]} 44. Qd5 {[%emt 0:01:08]} Bc7 {[%emt 0:08:28]} 45. Qf5+ {[%emt 0:00:12]} Qxf5 {[%emt 0:00:08]} 46. exf5 {[%emt 0:00:04]} Bg3 {[%emt 0:01:05]} 47. Kg1 {[%emt 0:03:06]} Kg8 {[%emt 0:01:43] [#]} (47... g6 $14) 48. Kf1 $1 {[%emt 0:00:28]} d3 {[%emt 0:00:05] [#]} 49. Be1 $1 {[%emt 0:01:10]} Be5 {[%emt 0:01:43]} 50. Bf2 {[%emt 0:01:50]} Kf7 {[%emt 0:00:51]} 51. Ke1 {[%emt 0:00:29]} ({Better is} 51. g4 $18) 51... Bc3+ {[%emt 0:00:52]} 52. Kd1 $16 {[%emt 0:00:04]} Kf6 {[%emt 0:00:05]} 53. Be1 {[%emt 0:01:12]} Bxe1 54. Kxe1 Kxf5 55. Kd2 Kf4 56. Kxd3 Kg3 57. Ke4 Kxg2 58. Kd4 1/2-1/2

[Event "FIDE WCCC U10 2018"]
[Site "Santiago de Compostela"]
[Date "2018.11.08"]
[Round "4"]
[White "Atanasov, Anthony"]
[Black "Azjargal Erdenebat"]
[Result "1-0"]
[ECO "D00"]
[WhiteElo "1916"]
[BlackElo "1633"]
[Annotator "NA RC"]
[PlyCount "79"]
[EventDate "2018.11.04"]
[EventType "swiss"]
[EventCountry "ESP"]
[SourceTitle "playchess.com"]
[Source "ChessBase"]
[SourceQuality "1"]
[TimeControl "40/5400+30:1800+30"]

{[%evp 8,79,5,8,5,32767,32767,32767,0,-11,-12,-7,32767,-29,32767,32767,18,22,20,38,44,30,60,-18,2,8,20,0,0,32767,57,32767,32767,37,104,36,53,0,0,-90,0,-25,86,18,288,32767,310,32767,707,790,32767,528,942,32767,32767,32767,985,32767,32767,32767,29982,2217,32767,3458,29986,29982,32767,32767,29990,29990,29990,29991,29998,29999]} 1. d4 {[%emt 0:00:00]} d5 {[%emt 0:00:00]} 2. Bf4 {[%emt 0:00:00]} Nf6 {[%emt 0:00:00]} 3. e3 {[%emt 0:00:00]} e6 {[%emt 0:00:00]} 4. Nd2 {[%emt 0:00:00]} c5 {[%emt 0:00:14]} 5. c3 {[%emt 0:00:00]} Nc6 {[%emt 0:00:05]} 6. Bd3 {[%emt 0:00:55]} Bd6 {[%emt 0:01:14]} 7. Bg3 {[%emt 0:07:02]} O-O {[%emt 0:04:58]} 8. Ngf3 {[%emt 0:00:09]} h6 {[%emt 0:09:10] D02: 1 d4 d5 2 Nf3 sidelines, including 2...Nf6 3 g3 and 2...Nf6 3 Bf4} (8... b6 9. e4 Be7 10. e5 Nh5 11. Nf1 cxd4 12. Nxd4 Nxd4 13. cxd4 g6 14. Ne3 f5 15. exf6 Bxf6 16. Be2 Nxg3 17. hxg3 {½-½ (37) Nakamura,H (2787)-Svidler,P (2760) Moscow 2018}) 9. O-O {[%emt 0:12:09] LiveBook: 6 Partien} Re8 {[%emt 0:09:59]} 10. e4 $146 {[%emt 0:07:29]} ({White should try} 10. dxc5 Bxc5 11. c4) ({Predecessor:} 10. Ne5 Qc7 11. f4 b6 12. Qa4 Bb7 13. Rf2 a6 14. Raf1 b5 15. Qd1 c4 16. Bb1 Ne7 {1-0 (31) Najjar,A (2274)-Hamam,B (2018) Doha 2011}) 10... Bxg3 {[%emt 0:02:00]} 11. hxg3 {[%emt 0:00:29]} c4 {[%emt 0:01:47]} 12. Bc2 {[%emt 0:00:50]} b5 {[%emt 0:03:42]} 13. a3 {[%emt 0:19:38]} a5 {[%emt 0:04:18]} 14. e5 {[%emt 0:00:32]} Nh7 {[%emt 0:01:38]} 15. b4 {[%emt 0:01:18]} (15. Qe1 $14) 15... Bd7 {[%emt 0:02:12]} 16. g4 {[%emt 0:04:37]} Nf8 {[%emt 0:09:09]} 17. g3 {[%emt 0:05:11]} f5 {[%emt 0:02:43]} 18. Nh4 {[%emt 0:05:28]} f4 {[%emt 0:07:35]} (18... Qg5 $11) 19. Ng2 {[%emt 0:07:15]} fxg3 {[%emt 0:01:52]} 20. fxg3 {[%emt 0:00:29]} Nh7 {[%emt 0:00:48]} (20... Qe7 $11 {keeps the balance.}) 21. Bg6 {[%emt 0:10:04]} (21. Nf3 $16) 21... Rf8 {[%emt 0:00:59]} 22. Nf4 {[%emt 0:01:31]} (22. Qc2 $5 {[%cal Rg6h7]} Ng5 23. Rxf8+ Qxf8 24. Rf1 $14) 22... Ng5 {[%emt 0:00:39]} 23. Nf3 {[%emt 0:05:01] [#]} (23. Bc2 $11 {keeps the balance.}) 23... Nxf3+ {[%emt 0:01:14]} ({Black should try} 23... Ne7 $1 $17 24. Bb1 axb4 25. cxb4 Ne4) 24. Qxf3 {[%emt 0:03:33]} Qg5 {[%emt 0:01:27] [#]} (24... axb4 $11 {keeps the balance.} 25. axb4 Rxa1 26. Rxa1 Ne7) 25. Bc2 {[%emt 0:01:07]} (25. Bf5 $1 $16 {[%mdl 512]}) 25... g6 $2 {[%emt 0:14:15]} (25... Be8 $16 {was worth a try.}) 26. Qe2 {[%emt 0:01:38]} axb4 {[%emt 0:01:06]} 27. axb4 {[%emt 0:00:22]} h5 $2 {[%emt 0:02:55]} (27... Rxa1 28. Rxa1 Rxf4 29. gxf4 Qxf4) 28. Rxa8 {[%emt 0:00:52]} Rxa8 {[%emt 0:00:16]} 29. Bxg6 {[%emt 0:01:44]} Ne7 {[%emt 0:01:26]} 30. Bf7+ {[%emt 0:01:40]} Kh8 {[%emt 0:01:17]} 31. Nxh5 {[%emt 0:03:01]} Be8 {[%emt 0:03:31]} 32. Bxe8 {[%emt 0:00:22]} Rxe8 {[%emt 0:00:48]} 33. Nf6 {[%emt 0:00:09]} Qg6 {[%emt 0:01:40]} 34. Nxe8 {[%emt 0:00:31]} Qxe8 {[%emt 0:00:12]} 35. Qf2 {[%emt 0:00:20]} (35. Rf6 $142 Kg7 36. Qh2 Qg6 37. Rxg6+ Nxg6 38. g5 Nf8 39. Qh6+ Kf7 40. Qf6+ Ke8 41. Kf1) 35... Ng6 {[%emt 0:00:21]} 36. Qf7 {[%emt 0:00:23]} Qg8 {[%emt 0:01:14]} 37. Rf6 {[%emt 0:00:17]} Qa8 {[%emt 0:01:36]} 38. Rxg6 {[%emt 0:01:09]} Qa1+ {[%emt 0:04:00]} 39. Qf1 {[%emt 0:00:06]} Qa7 {[%emt 0:06:02]} 40. Qf8+ {[%emt 0:00:00]} 1-0

[Event "FIDE WCCC U10 2018"]
[Site "Santiago de Compostela"]
[Date "2018.11.08"]
[Round "4"]
[White "Seemann, Jakub"]
[Black "Leal Prado, David Elias"]
[Result "1-0"]
[ECO "C78"]
[WhiteElo "1869"]
[BlackElo "1741"]
[Annotator "NA RC"]
[PlyCount "71"]
[EventDate "2018.11.04"]
[EventType "swiss"]
[EventCountry "ESP"]
[SourceTitle "playchess.com"]
[Source "ChessBase"]
[SourceQuality "1"]
[TimeControl "40/5400+30:1800+30"]

{[%evp 17,71,-37,13,-20,-22,32767,4,2,60,0,0,-22,6,1,8,32767,0,0,33,27,36,30,44,30,44,39,32767,54,32767,32767,44,20,22,23,32767,32767,32767,32767,32767,91,32767,181,32767,32767,210,32767,235,90,350,352,276,293,373,483,566,125]} 1. e4 {[%emt 0:00:00]} e5 {[%emt 0:00:02]} 2. Nf3 {[%emt 0:00:00]} Nc6 {[%emt 0:00:25]} 3. Bb5 {[%emt 0:00:14]} a6 {[%emt 0:00:14]} 4. Ba4 {[%emt 0:00:10]} Nf6 {[%emt 0:00:37]} 5. O-O {[%emt 0:00:23]} b5 {[%emt 0:00:18]} 6. Bb3 {[%emt 0:00:09]} Bb7 {[%emt 0:00:16]} 7. Ng5 {[%emt 0:01:20]} d5 {[%emt 0:01:33]} 8. exd5 {[%emt 0:00:14]} Nd4 {[%emt 0:00:56]} 9. Re1 {[%emt 0:12:48] LiveBook: 10 Games} Bd6 {[%emt 0:04:43] C78: Ruy Lopez: Archangelsk and Möller Defences} ({Besser ist} 9... Be7 $15) 10. Nc3 {[%emt 0:11:23]} O-O {[%emt 0:16:42]} 11. d3 {[%emt 0:05:30]} Nxb3 {[%emt 0:07:08]} 12. axb3 {[%emt 0:00:50]} Nxd5 {[%emt 0:06:19]} 13. Nxd5 $146 {[%emt 0:11:13]} ({Predecessor:} 13. Qf3 c6 14. Qf5 g6 15. Qh3 h5 16. Nce4 Bc8 17. Qg3 {0-1 (39) Hamdani,R (2375)-Zaw,W (2531) Surabaya 2002}) 13... Bxd5 {[%emt 0:00:08]} 14. d4 {[%emt 0:11:20]} f6 {[%emt 0:20:19]} 15. dxe5 {[%emt 0:03:51]} Bxe5 {[%emt 0:00:15]} 16. Nxh7 {[%emt 0:26:31]} Kxh7 {[%emt 0:11:25]} 17. f4 {[%emt 0:00:12]} Bf7 {[%emt 0:06:55]} 18. fxe5 {[%emt 0:00:35]} Qxd1 {[%emt 0:02:48]} 19. Rxd1 {[%emt 0:00:07]} fxe5 {[%emt 0:00:53]} 20. Be3 {[%emt 0:01:17]} Bg6 {[%emt 0:03:23]} 21. c3 {[%emt 0:01:26]} Rf6 {[%emt 0:03:19]} 22. b4 {[%emt 0:02:00]} Raf8 {[%emt 0:02:09]} 23. Rd7 {[%emt 0:01:36]} R8f7 {[%emt 0:01:58]} 24. Rxf7 {[%emt 0:00:13]} Bxf7 {[%emt 0:00:12]} 25. Re1 {[%emt 0:02:02]} Re6 {[%emt 0:02:03]} 26. g4 {[%emt 0:01:46]} g6 {[%emt 0:01:16]} 27. Kg2 {[%emt 0:01:29]} Rc6 {[%emt 0:01:09]} 28. Kg3 {[%emt 0:00:36]} Rc4 {[%emt 0:00:59] [#]} 29. Bc5 $1 {[%emt 0:00:23]} e4 {[%emt 0:02:23]} 30. Rf1 {[%emt 0:01:55]} Bd5 {[%emt 0:01:46]} 31. Bd4 {[%emt 0:01:04]} Rc6 {[%emt 0:00:54] [#]} (31... Kg8 $16 {was necessary.} 32. Bc5 e3) 32. h4 $2 {[%emt 0:01:13]} (32. Rf8 $1 $18 {[%csl Gd4][%cal Rf8h8] is the precise move to win.} Bg8 33. h4) 32... Rd6 $2 {[%emt 0:01:24]} (32... Kg8 $16) 33. Rf8 {[%emt 0:00:29]} Bg8 {[%emt 0:00:28]} 34. Kf4 {[%emt 0:00:51]} (34. Rc8 $142) 34... Re6 {[%emt 0:00:29]} 35. Rc8 {[%emt 0:00:49]} Re7 {[%emt 0:00:38]} 36. Bc5 $16 {[%emt 0:00:41]} (36. Bf6 $18 {has better winning chances.} e3 37. Bxe7) 1-0